bitfinex/quotes_SOLUSD_20220128
["timestamp","ask_amount","ask_price","bid_price","bid_amount"]
[1643401825516,16.468,91.18,91.1,6.0]
[1643401825717,16.718,91.18,91.1,6.0]
[1643401826322,16.718,91.18,91.1,6.25]
[1643401826517,16.718,91.18,91.1,6.21869191]
[1643401826718,46.4275872,91.169,91.1,6.21869191]
[1643401826917,46.4275872,91.169,91.11,15.81]
[1643401827319,46.4275872,91.169,91.11,16.06]
[1643401828121,16.47,91.16,91.11,16.06]
[1643401828319,16.72,91.16,91.11,16.06]
[1643401828518,16.47,91.16,91.11,16.06]
[1643401828722,46.4275872,91.169,91.111,2.95669142]
[1643401828923,46.4275872,91.169,91.12,6.0]
[1643401829122,46.4275872,91.169,91.13,15.81]
[1643401829419,46.4275872,91.169,91.13,16.06]
[1643401830223,46.4275872,91.169,91.093,2.95669142]
[1643401830424,46.4275872,91.169,91.07,15.85339797]
[1643401830623,46.4275872,91.169,91.035,3.01401435]
[1643401830624,6.0,91.16,91.043,1.50981917]
[1643401830825,0.31334433,91.156,91.026,1.50981917]
[1643401831021,0.31334433,91.156,91.02,15.81]
[1643401831224,14.25354931,91.155,91.02,15.81]
[1643401831427,14.25354931,91.155,91.011,371.07351708]
[1643401831428,16.482,91.12,91.011,371.07351708]
[1643401831628,16.482,91.12,90.96,41.4231]
[1643401831629,32.292,91.12,90.988,1.50981917]
[1643401831838,2.6,91.096,90.98,15.81]
[1643401832236,14.25354931,91.095,90.98,15.81]
[1643401832533,16.492,91.04,90.97,15.81]
[1643401832834,2.95669142,91.039,91.0,40.43634433]
[1643401833234,0.25,91.04,91.0,40.43634433]
[1643401834036,54.984,91.05,91.0,40.43634433]
[1643401834232,55.234,91.05,91.0,40.43634433]
[1643401834632,6.0,91.04,91.0,40.43634433]
[1643401834833,6.25,91.04,91.0,40.43634433]
[1643401835463,5.72054897,91.039,91.0,40.43634433]
[1643401837562,11.45238821,91.097,91.0,40.43634433]
[1643401837764,15.81,91.12,91.0,40.68634433]
[1643401837962,6.0,91.09,91.0,56.49634433]
[1643401838567,6.0,91.08,91.0,56.49634433]
[1643401838765,30.41424086,91.089,91.0,56.49634433]
[1643401838967,30.41424086,91.089,91.011,48.05291658]
[1643401840264,16.485,91.08,91.011,48.05291658]
[1643401840665,3.01087046,91.217,91.02,6.0]
[1643401840867,16.7246,91.166,91.03,15.81]
[1643401841067,6.0,91.14,91.04,6.0]
[1643401841267,16.478,91.12,91.04,16.06]
[1643401841665,31.43117091,91.119,91.04,16.06]
[1643401842365,16.48,91.11,91.04,16.06]
[1643401842764,16.73,91.11,91.04,16.06]
[1643401842973,16.48,91.11,91.04,16.06]
[1643401843170,16.73,91.11,91.04,16.06]
[1643401843572,16.48,91.11,91.04,16.06]
[1643401843778,31.43117091,91.119,91.041,2.95669142]
[1643401843977,31.43117091,91.119,91.051,109.0]
[1643401844275,31.43117091,91.119,91.061,42.81453083]
[1643401844673,31.43117091,91.119,91.07,6.0]
[1643401844974,31.43117091,91.119,91.07,22.06]
[1643401845373,31.43117091,91.119,91.07,16.06]
[1643401845578,0.25,91.12,91.07,16.06]
[1643401845774,0.25,91.16,91.07,16.06]
[1643401845974,16.469,91.17,91.08,6.0]
[1643401846178,16.469,91.17,91.09,15.81]
[1643401846377,16.469,91.17,91.09,16.06]
[1643401846575,25.54670476,91.169,91.09,16.06]
[1643401847176,16.47,91.16,91.09,16.06]
[1643401847379,16.72,91.16,91.09,16.06]
[1643401848380,16.72,91.16,91.09,0.25]
[1643401848580,16.72,91.16,91.09,13.44]
[1643401852883,16.72,91.16,91.091,109.0]
[1643401853182,0.25,91.16,91.091,109.0]
[1643401853383,25.54670476,91.169,91.101,109.0]
[1643401853586,6.0,91.16,91.101,109.0]
[1643401853783,6.25,91.16,91.101,109.0]
[1643401855589,6.25,91.16,91.1,19.44]
[1643401857190,6.25,91.16,91.101,109.0]
[1643401857689,6.21487838,91.16,91.101,109.0]
[1643401857890,6.21487838,91.16,91.1,19.44]
[1643401858490,6.21487838,91.16,91.101,109.0]
[1643401858690,6.21487838,91.16,91.1,19.44]
[1643401858890,6.21487838,91.16,91.1,19.19]
[1643401859091,16.72,91.16,91.1,19.19]
[1643401859292,16.72,91.16,91.1,6.0]
[1643401859693,16.72,91.16,91.09,19.19]
[1643401859895,0.25,91.16,91.09,19.19]
[1643401860092,16.72,91.16,91.09,19.19]
[1643401860299,16.72,91.16,91.09,19.44]
[1643401860495,25.54670476,91.169,91.09,19.44]
[1643401860694,25.54670476,91.169,91.091,111.95669142]
[1643401861096,25.54670476,91.169,91.1,6.0]
[1643401861394,2.95669142,91.168,91.077,2.95669142]
[1643401861622,6.0,91.16,91.061,49.1193]
[1643401861821,6.25,91.16,91.061,49.1193]
[1643401862021,2.95669142,91.159,91.061,49.1193]
[1643401862222,32.86360996,91.159,91.04,13.19]
[1643401862424,32.86360996,91.159,91.041,49.46071503]
[1643401862425,10.82036673,91.158,91.041,49.46071503]
[1643401862620,7.28166983,91.153,91.041,49.46071503]
[1643401862821,1.50252592,91.151,91.041,49.46071503]
[1643401863021,16.478,91.13,91.041,49.46071503]
[1643401863226,25.54670476,91.129,91.041,49.46071503]
[1643401864821,16.479,91.11,91.04,13.44]
[1643401865028,16.479,91.11,91.01,46.8489]
[1643401865224,16.729,91.11,91.002,23.5445]
[1643401865427,2.95669142,91.109,91.0,40.43634433]
[1643401865623,16.492,91.04,91.0,40.43634433]
[1643401865828,25.54670476,91.039,91.0,40.43634433]
[1643401866624,16.498,91.01,90.96,13.19]
[1643401866827,0.25,91.01,90.942,1.50981917]
[1643401867226,0.25,91.01,90.927,1.50981917]
[1643401867431,0.25,91.01,90.925,42.69787692]
[1643401867627,16.5,91.0,90.925,42.69787692]
[1643401867827,16.75,91.0,90.925,42.69787692]
[1643401870831,16.496,91.02,90.925,42.69787692]
[1643401871030,16.496,91.02,90.93,6.0]
[1643401871231,16.698,91.068,90.94,13.19]
[1643401871431,16.698,91.068,90.942,40.23143053]
[1643401872231,19.65469142,91.068,90.942,40.23143053]
[1643401872431,19.65469142,91.068,90.94,13.19]
[1643401872432,31.871363,91.067,90.94,13.19]
[1643401872632,6.0,91.06,90.94,13.19]
[1643401873032,34.82805442,91.059,90.94,13.19]
[1643401873433,16.5,91.0,90.94,13.19]
[1643401873836,16.75,91.0,90.94,13.44]
[1643401876036,6.0,90.99,90.94,13.44]
[1643401877337,6.0,90.99,90.94,13.19]
[1643401877537,16.501,90.99,90.94,13.19]
[1643401877940,6.0,90.98,90.94,13.44]
[1643401878138,24.845,91.057,90.95,6.0]
[1643401878339,0.25,91.06,90.96,13.19]
[1643401878540,6.0,91.05,90.96,13.19]
[1643401878738,16.497,91.02,90.96,13.44]
[1643401879338,16.747,91.02,90.96,13.44]
[1643401879738,16.493,91.04,90.96,13.44]
[1643401880142,0.25,91.04,90.961,109.0]
[1643401880740,16.742,91.04,90.96,13.44]
[1643401880952,0.25,91.04,90.96,13.44]
[1643401881343,0.25,91.07,90.96,13.44]
[1643401881743,2.95669142,91.067,90.96,13.44]
[1643401882344,0.25,91.07,90.961,109.0]
[1643401882543,6.25,91.07,90.961,109.0]
[1643401882744,6.0,91.07,90.961,109.0]
[1643401882943,9.20669142,91.07,90.96,13.44]
[1643401883145,54.977,91.06,90.96,13.44]
[1643401883341,55.227,91.06,90.96,13.44]
[1643401884045,16.492,91.04,90.96,13.44]
[1643401884243,16.742,91.04,90.961,109.0]
[1643401886049,16.494,91.03,90.961,109.0]
[1643401888571,16.494,91.03,90.96,13.44]
[1643401888871,16.744,91.03,90.96,13.44]
[1643401889071,16.496,91.02,90.96,13.44]
[1643401889271,16.746,91.02,90.96,13.44]
[1643401889671,16.746,91.02,90.96,13.19]
[1643401889874,16.746,91.02,90.96,13.44]
[1643401890072,16.496,91.02,90.96,13.44]
[1643401891076,16.493,91.04,90.96,13.44]
[1643401891272,16.743,91.04,90.96,13.44]
[1643401892876,16.494,91.03,90.96,13.44]
[1643401893278,16.744,91.03,90.96,13.44]
[1643401894477,16.496,91.02,90.96,13.44]
[1643401894878,0.25,91.03,90.96,13.44]
[1643401895077,0.25,91.03,90.96,14.94981917]
[1643401895278,55.233,91.05,90.96,14.94981917]
[1643401895677,55.233,91.05,90.961,1.50981917]
[1643401896279,55.233,91.05,90.962,1.50981917]
[1643401896583,16.491,91.05,90.962,1.50981917]
[1643401896780,1.50252592,91.069,90.973,35.13425872]
[1643401896980,1.50252592,91.077,90.983,6.0]
[1643401897279,1.50252592,91.091,90.984,110.50981917]
[1643401897582,1.50252592,91.1,91.0,164.88]
[1643401897780,1.50252592,91.1,91.011,42.83379311]
[1643401897982,1.50252592,91.108,91.011,42.83379311]
[1643401898179,1.50252592,91.118,91.021,6.0]
[1643401898384,1.50252592,91.123,91.031,48.70571111]
[1643401898581,1.50252592,91.124,91.041,6.0]
[1643401898883,1.50252592,91.127,91.051,36.84806787]
[1643401899081,1.50252592,91.128,91.051,36.84806787]
[1643401899281,16.476,91.13,91.051,36.84806787]
[1643401900083,1.50252592,91.138,91.051,36.84806787]
[1643401900383,1.50252592,91.139,91.052,24.5824]
[1643401900583,0.25,91.14,91.052,24.5824]
[1643401901185,1.75252592,91.14,91.052,24.5824]
[1643401901384,0.25,91.14,91.052,24.5824]
[1643401901586,0.25,91.14,91.053,111.95669142]
[1643401901783,0.25,91.14,91.063,109.0]
[1643401901784,16.474,91.14,91.063,109.0]
[1643401901983,16.474,91.14,91.071,109.0]
[1643401902184,16.724,91.14,91.072,41.63461457]
[1643401902986,1.50252592,91.152,91.072,41.63461457]
[1643401903185,1.50252592,91.154,91.073,2.95669142]
[1643401903384,2.6,91.206,91.073,2.95669142]
[1643401903385,1.50252592,91.159,91.082,6.0]
[1643401903591,1.50252592,91.167,91.09,13.19]
[1643401903785,1.50252592,91.175,91.1,13.19]
[1643401903986,1.50252592,91.177,91.101,6.0]
[1643401904186,1.50252592,91.186,91.11,6.0]
[1643401904385,1.50252592,91.19,91.12,13.19]
[1643401904685,1.50252592,91.193,91.12,13.19]
[1643401904885,1.50252592,91.192,91.12,13.44]
[1643401905086,6.0,91.183,91.12,13.44]
[1643401905288,16.715,91.19,91.12,13.44]
[1643401905890,16.465,91.19,91.12,13.44]
[1643401906095,1.50252592,91.208,91.13,6.0]
[1643401906295,1.50252592,91.208,91.131,41.84209432]
[1643401906522,1.50252592,91.209,91.131,41.84209432]
[1643401907121,16.462,91.21,91.131,41.84209432]
[1643401907321,16.712,91.21,91.131,41.84209432]
[1643401907521,16.712,91.21,91.13,13.19]
[1643401907719,1.50252592,91.201,91.13,13.19]
[1643401907919,1.50252592,91.201,91.13,13.44]
[1643401908120,0.25,91.2,91.13,13.44]
[1643401908520,16.713,91.2,91.13,13.44]
[1643401909124,16.713,91.2,91.13,13.19]
[1643401909726,16.713,91.2,91.11,13.19]
[1643401909925,16.473,91.16,91.1,13.19]
[1643401910123,16.473,91.16,91.099,45.20119887]
[1643401910723,16.473,91.16,91.1,13.19]
[1643401910924,16.467,91.18,91.1,13.19]
[1643401911124,16.467,91.18,91.1,13.44]
[1643401911427,16.717,91.18,91.1,13.44]
[1643401912029,16.717,91.18,91.11,6.0]
[1643401912224,16.717,91.18,91.11,19.19]
[1643401912425,16.717,91.18,91.11,19.44]
[1643401912625,16.717,91.18,91.111,6.0]
[1643401912826,16.717,91.18,91.121,35.065713]
[1643401913026,16.463,91.2,91.131,6.0]
[1643401913227,1.50252592,91.217,91.131,6.0]
[1643401913427,0.25,91.2,91.132,6.0]
[1643401913628,0.25,91.2,91.14,6.0]
[1643401913829,0.25,91.2,91.141,43.96432337]
[1643401914030,6.0,91.197,91.141,43.96432337]
[1643401914635,16.713,91.2,91.141,43.96432337]
[1643401915637,16.713,91.2,91.13,15.82]
[1643401916237,16.713,91.2,91.13,16.07]
[1643401916734,16.713,91.2,91.131,38.98118324]
[1643401917337,0.25,91.199,91.131,38.98118324]
[1643401917538,16.465,91.19,91.06,54.884]
[1643401917739,0.31623349,91.184,91.07,15.82]
[1643401917939,6.0,91.18,91.042,46.5227]
[1643401918138,1.50252592,91.165,91.042,23.1123]
[1643401918337,15.82,91.16,91.02,15.82]
[1643401918538,15.82,91.16,91.021,40.32867432]
[1643401918741,0.25,91.159,91.021,40.32867432]
[1643401918942,16.75894546,91.159,91.022,109.0]
[1643401919141,15.00641954,91.158,91.022,109.0]
[1643401919438,3.20669142,91.157,91.021,40.32867432]
[1643401919636,15.25641954,91.157,91.021,40.32867432]
[1643401919838,15.00641954,91.156,91.022,0.25]
[1643401920038,16.478,91.14,91.022,0.25]
[1643401920439,3.20669142,91.139,91.022,0.25]
[1643401920638,3.20669142,91.139,91.022,109.25]
[1643401920838,9.98,91.148,91.022,109.25]
[1643401920839,9.98,91.148,91.023,49.7531]
[1643401921042,9.98,91.148,91.033,115.0]
[1643401921240,9.98,91.148,91.04,15.82]
[1643401921438,9.98,91.148,91.041,38.93964751]
[1643401921638,9.98,91.148,91.051,6.0]
[1643401921843,0.25,91.147,91.06,15.82]
[1643401922041,16.476,91.14,91.061,48.16169758]
[1643401922243,0.25,91.139,91.061,48.41169758]
[1643401922439,0.25,91.139,91.061,48.16169758]
[1643401922641,0.25,91.139,91.062,0.25]
[1643401923340,9.98,91.148,91.062,0.25]
[1643401923541,9.98,91.148,91.071,6.0]
[1643401923740,9.98,91.148,91.08,15.82]
[1643401923940,9.98,91.148,91.081,39.77451262]
[1643401924140,9.98,91.148,91.091,6.0]
[1643401924344,9.98,91.148,91.1,15.82]
[1643401924542,9.98,91.148,91.101,152.34061518]
[1643401924741,9.98,91.148,91.101,152.59061518]
[1643401925845,1.50252592,91.187,91.112,109.0]
[1643401926040,16.464,91.2,91.112,109.0]
[1643401926041,1.50252592,91.196,91.122,6.0]
[1643401926245,6.0,91.177,91.123,0.25]
[1643401926441,1.50252592,91.186,91.123,3.20669142]
[1643401926646,1.50252592,91.199,91.133,6.0]
[1643401926850,4.51862463,91.25,91.133,6.0]
[1643401926851,1.50252592,91.197,91.14,15.82]
[1643401927043,1.50252592,91.209,91.15,6.0]
[1643401927243,1.50252592,91.215,91.16,15.82]
[1643401927447,1.50252592,91.216,91.161,46.21336095]
[1643401927646,1.50252592,91.215,91.161,46.46336095]
[1643401927847,6.0,91.206,91.16,15.82]
[1643401928046,6.0,91.206,91.08,215.61381917]
[1643401928246,6.0,91.206,91.11,15.82]
[1643401928448,1.50252592,91.188,91.114,6.0]
[1643401928653,1.50252592,91.189,91.114,6.0]
[1643401928847,1.50252592,91.195,91.115,47.80142113]
[1643401929048,1.50252592,91.2,91.125,6.0]
[1643401929248,1.50252592,91.203,91.131,48.37387258]
[1643401929450,1.50252592,91.207,91.131,48.37387258]
[1643401929653,1.50252592,91.205,91.141,6.0]
[1643401929849,1.50252592,91.205,91.151,109.0]
[1643401930052,1.50252592,91.21,91.153,109.0]
[1643401930251,1.50252592,91.216,91.154,0.25]
[1643401930751,1.50252592,91.219,91.154,3.20669142]
[1643401930951,1.50252592,91.22,91.163,6.0]
[1643401931151,1.50252592,91.221,91.164,6.0]
[1643401931352,0.25,91.22,91.165,0.25]
[1643401931958,1.75252592,91.22,91.165,0.25]
[1643401932254,1.50252592,91.219,91.165,0.25]
[1643401932456,1.50252592,91.219,91.164,0.25]
[1643401933080,0.25,91.22,91.164,0.25]
[1643401933478,0.25,91.22,91.154,0.25]
[1643401933678,1.75252592,91.22,91.154,0.25]
[1643401934277,0.25,91.22,91.154,0.25]
[1643401934878,1.50252592,91.215,91.154,0.25]
[1643401935279,0.25,91.214,91.152,36.52509259]
[1643401935679,1.50252592,91.208,91.152,36.52509259]
[1643401935883,1.50252592,91.202,91.152,36.52509259]
[1643401936079,1.50252592,91.201,91.152,36.52509259]
[1643401936480,0.25,91.2,91.152,36.52509259]
[1643401936682,1.50252592,91.201,91.152,36.52509259]
[1643401936878,1.50252592,91.204,91.152,36.52509259]
[1643401937481,1.50252592,91.205,91.152,36.52509259]
[1643401937683,1.50252592,91.205,91.153,0.25]
[1643401937880,13.18,91.27,91.153,0.25]
[1643401937881,1.50252592,91.211,91.153,0.25]
[1643401938081,1.50252592,91.22,91.153,23.7263]
[1643401938281,1.50252592,91.223,91.162,6.0]
[1643401938485,6.0,91.21,91.163,6.0]
[1643401938783,1.50252592,91.223,91.163,6.25]
[1643401938983,1.50252592,91.225,91.166,40.56440281]
[1643401939179,0.25,91.222,91.167,109.0]
[1643401939384,1.75252592,91.222,91.167,109.25]
[1643401939781,0.25,91.222,91.167,109.25]
[1643401940284,0.25,91.225,91.167,109.25]
[1643401942090,0.25,91.225,91.167,0.25]
[1643401942486,1.50252592,91.223,91.167,109.25]
[1643401942687,1.50252592,91.223,91.17,13.18]
[1643401942888,4.51862463,91.275,91.17,13.18]
[1643401942889,1.50252592,91.231,91.171,0.25]
[1643401943092,1.50252592,91.248,91.18,6.0]
[1643401943290,1.50252592,91.248,91.19,13.18]
[1643401943492,113.7,91.329,91.191,109.0]
[1643401943493,1.50252592,91.281,91.191,109.0]
[1643401943697,1.50252592,91.281,91.201,46.32162424]
[1643401943890,113.7,91.329,91.21,13.18]
[1643401943891,1.50252592,91.287,91.21,13.18]
[1643401944089,1.50252592,91.287,91.22,6.0]
[1643401944296,1.50252592,91.289,91.231,109.0]
[1643401944494,113.7,91.329,91.231,109.0]
[1643401944495,1.50252592,91.293,91.231,109.0]
[1643401944697,1.50252592,91.297,91.241,6.0]
[1643401944895,1.50252592,91.297,91.242,0.25]
[1643401945093,1.50252592,91.3,91.25,6.0]
[1643401945294,3.52738515,91.302,91.251,39.19539191]
[1643401945496,1.50252592,91.302,91.252,6.0]
[1643401945695,1.50252592,91.303,91.251,39.19539191]
[1643401945896,1.50252592,91.306,91.252,109.0]
[1643401946097,1.50252592,91.318,91.252,109.0]
[1643401946298,1.50252592,91.318,91.253,0.25]
[1643401946499,1.66504711,91.317,91.253,0.25]
[1643401947301,1.66504711,91.317,91.18,71.3347]
[1643401947498,1.50252592,91.299,91.203,6.0]
[1643401947697,6.0,91.307,91.2,13.18]
[1643401947698,113.7,91.283,91.2,13.18]
[1643401947898,113.7,91.283,91.191,2.95669142]
[1643401947899,1.50252592,91.274,91.18,13.18]
[1643401948200,1.50252592,91.271,91.161,39.85097211]
[1643401948408,1.50252592,91.268,91.15,13.18]
[1643401948603,1.50252592,91.263,91.14,13.18]
[1643401948801,1.50252592,91.25,91.14,13.18]
[1643401949002,1.50252592,91.246,91.14,13.18]
[1643401949203,1.50252592,91.246,91.12,13.18]
[1643401949403,1.66504711,91.242,91.13,13.18]
[1643401949606,1.66504711,91.242,91.14,13.18]
[1643401949807,0.25,91.241,91.14,13.18]
[1643401950005,1.50252592,91.237,91.14,13.18]
[1643401950208,16.458,91.23,91.14,13.18]
[1643401950406,0.25,91.229,91.141,0.25]
[1643401951614,16.46,91.22,91.141,0.25]
[1643401951813,0.95698315,91.219,91.141,0.25]
[1643401952614,0.95698315,91.219,91.14,13.18]
[1643401952815,16.461,91.21,91.111,109.0]
[1643401953014,16.461,91.21,91.121,6.0]
[1643401953215,0.25,91.209,91.121,6.0]
[1643401953615,0.25,91.209,91.122,36.80920144]
[1643401953814,16.467,91.19,91.122,36.80920144]
[1643401954016,1.66504711,91.189,91.123,0.25]
[1643401954216,1.91504711,91.189,91.123,0.25]
[1643401954813,1.91504711,91.189,91.122,36.80920144]
[1643401955716,16.467,91.18,91.122,36.80920144]
[1643401956118,1.50252592,91.206,91.122,36.80920144]
[1643401956318,0.25,91.205,91.123,0.25]
[1643401956918,6.0,91.199,91.123,0.25]
[1643401957220,6.0,91.189,91.123,0.25]
[1643401957621,0.25,91.188,91.123,0.25]
[1643401957819,0.25,91.188,91.12,6.0]
[1643401958018,2.95669142,91.187,91.12,6.0]
[1643401958222,16.467,91.18,91.07,13.18]
[1643401958420,1.50252592,91.178,91.07,13.18]
[1643401958619,4.70921734,91.179,91.07,13.18]
[1643401958820,3.20669142,91.177,91.071,46.80513702]
[1643401959244,2.95669142,91.176,91.071,46.80513702]
[1643401959646,0.25,91.175,91.072,0.25]
[1643401959845,16.473,91.15,91.072,0.25]
[1643401960252,0.25,91.149,91.072,0.25]
[1643401961047,16.474,91.14,91.072,0.25]
[1643401961249,0.25,91.139,91.072,0.25]
[1643401961449,0.25,91.139,91.071,0.25]
[1643401962250,16.476,91.13,91.071,35.88310575]
[1643401962651,0.25,91.129,91.071,35.88310575]
[1643401964451,16.478,91.12,91.071,35.88310575]
[1643401964653,15.978,91.12,91.071,35.88310575]
[1643401965655,0.25,91.129,91.071,35.88310575]
[1643401965855,0.25,91.139,91.071,35.88310575]
[1643401966157,25.04012592,91.189,91.071,144.88310575]
[1643401966357,0.25,91.188,91.081,6.0]
[1643401966555,0.25,91.188,91.091,48.78068238]
[1643401966760,16.468,91.18,91.092,22.7566]
[1643401966956,0.25,91.197,91.102,109.0]
[1643401967157,0.25,91.197,91.11,13.18]
[1643401967356,0.25,91.197,91.111,0.25]
[1643401967758,2.43440292,91.206,91.111,46.59777821]
[1643401967962,16.464,91.2,91.112,109.0]
[1643401968256,16.464,91.2,91.113,0.25]
[1643401968455,16.464,91.2,91.113,8.91]
[1643401968656,26.04892592,91.219,91.113,8.91]
[1643401968856,24.5464,91.219,91.124,109.0]
[1643401969057,24.4448,91.227,91.13,13.18]
[1643401969257,24.4448,91.227,91.134,6.0]
[1643401969455,24.4448,91.227,91.131,109.25]
[1643401969658,16.46,91.22,91.132,47.85416689]
[1643401969857,16.46,91.22,91.142,109.0]
[1643401970060,1.50252592,91.239,91.15,13.18]
[1643401970257,1.50252592,91.242,91.151,109.25]
[1643401970459,1.50252592,91.245,91.153,109.0]
[1643401970663,1.50252592,91.246,91.154,43.92128471]
[1643401970859,16.458,91.23,91.154,44.17128471]
[1643401971256,16.458,91.23,91.155,109.0]
[1643401971458,16.458,91.23,91.16,13.18]
[1643401971859,16.458,91.23,91.161,0.25]
[1643401972159,0.25,91.229,91.161,0.25]
[1643401976661,1.50252592,91.232,91.161,0.25]
[1643401976863,0.25,91.231,91.161,0.25]
[1643401977869,0.25,91.233,91.161,0.25]
[1643401978271,0.25,91.234,91.161,0.25]
[1643401978468,0.25,91.234,91.161,109.25]
[1643401978978,1.50252592,91.236,91.161,109.25]
[1643401979169,16.456,91.24,91.161,109.25]
[1643401980171,16.456,91.24,91.161,109.0]
[1643401980372,16.456,91.24,91.172,43.33389576]
[1643401980571,16.456,91.24,91.172,152.33389576]
[1643401981773,16.456,91.24,91.173,0.25]
[1643401982375,1.50252592,91.244,91.173,0.25]
[1643401982376,1.50252592,91.243,91.173,0.25]
[1643401982575,1.50252592,91.245,91.173,0.25]
[1643401982776,1.50252592,91.246,91.173,0.25]
[1643401983279,1.50252592,91.248,91.173,0.25]
[1643401983575,16.456,91.24,91.173,0.25]
[1643401983776,16.456,91.24,91.172,152.33389576]
[1643401984178,1.50252592,91.249,91.172,152.33389576]
[1643401984376,1.50252592,91.253,91.172,152.33389576]
[1643401984576,1.50252592,91.254,91.172,152.33389576]
[1643401984777,1.50252592,91.254,91.182,6.0]
[1643401984978,1.50252592,91.255,91.19,13.18]
[1643401985178,1.50252592,91.262,91.19,24.94]
[1643401985402,1.50252592,91.27,91.201,109.0]
[1643401985603,1.50252592,91.273,91.211,6.0]
[1643401985808,1.50252592,91.275,91.213,109.0]
[1643401986003,1.50252592,91.276,91.221,109.0]
[1643401986203,1.50252592,91.276,91.222,6.0]
[1643401986403,1.50252592,91.275,91.223,0.25]
[1643401986903,1.50252592,91.276,91.223,0.25]
[1643401987103,1.50252592,91.277,91.223,0.25]
[1643401987304,1.50252592,91.281,91.223,0.25]
[1643401987508,1.50252592,91.284,91.223,109.25]
[1643401987707,113.7,91.364,91.23,6.0]
[1643401987904,113.7,91.364,91.224,2.95669142]
[1643401987905,34.93189362,91.371,91.24,13.18]
[1643401988105,1.50376485,91.351,91.25,19.18]
[1643401988309,1.50405135,91.369,91.251,23.8772]
[1643401988507,4.50978483,91.42,91.274,5.0]
[1643401988709,3.00850638,91.401,91.3,164.81]
[1643401988908,3.00929228,91.441,91.311,109.0]
[1643401989118,1.50482261,91.415,91.321,6.0]
[1643401989310,1.50482261,91.431,91.33,164.81]
[1643401989511,1.50450943,91.427,91.331,109.0]
[1643401989711,0.00450943,91.428,91.37,197.64]
[1643401989908,1.60030888,91.441,91.38,213.45]
[1643401990108,1.60030888,91.441,91.4,197.64]
[1643401990307,1.60030888,91.441,91.41,15.81]
[1643401991309,1.60030888,91.441,91.411,0.25]
[1643401992513,1.60030888,91.441,91.42,6.0]
[1643401992708,1.60030888,91.441,91.43,15.81]
[1643401993109,1.60030888,91.441,91.431,0.25]
[1643401993413,0.00030888,91.441,91.431,0.25]
[1643401994011,0.00030888,91.441,91.44,6.0]
[1643401994514,0.00030888,91.441,91.44,9.20669142]
[1643401995921,0.00030888,91.441,91.44,118.20669142]
[1643401996114,0.00030888,91.441,91.44,6.0]
[1643401996514,0.00030888,91.441,91.432,23.8765]
[1643401996714,0.00030888,91.441,91.43,13.14]
[1643401997320,0.00030888,91.441,91.431,0.25]
[1643401997516,0.00030888,91.441,91.431,3.20669142]
[1643401997717,0.00030888,91.441,91.432,2.95669142]
[1643401998016,0.00030888,91.441,91.431,6.0]
[1643401998216,0.00030888,91.441,91.43,13.14]
[1643401999118,0.00030888,91.441,91.44,61.0]
[1643401999319,0.00030888,91.441,91.44,170.0]